bitfinex/quotes_ETHUSD_20250925
["timestamp","ask_amount","ask_price","bid_price","bid_amount"]
[1758792850211,4.8644,4059.9,4059.7,2.46323304]
[1758792850417,4.8644,4059.9,4059.8,2.46317552]
[1758792850611,4.8644,4059.9,4058.8,5.2999]
[1758792850815,2.46327802,4059.7,4058.8,0.002]
[1758792851043,2.46337506,4059.5,4058.8,0.002]
[1758792851219,2.46364677,4059.1,4058.8,0.002]
[1758792851424,7.27467467,4059.0,4058.8,0.002]
[1758792851646,5.5248,4059.0,4058.8,0.002]
[1758792851851,0.7138,4058.9,4058.8,0.002]
[1758792852149,10.04052169,4058.9,4058.8,0.002]
[1758792852850,36.58580569,4058.9,4058.8,0.002]
[1758792853746,13.04052169,4058.9,4058.8,0.002]
[1758792854052,0.38654123,4059.8,4058.9,0.792]
[1758792854416,4.883,4059.7,4059.1,0.792]
[1758792854629,4.883,4059.7,4059.2,2.46353534]
[1758792854834,4.883,4059.7,4059.2,2.46353803]
[1758792855318,4.883,4059.7,4059.6,2.46329687]
[1758792855516,0.0194,4059.9,4059.7,2.46323619]
[1758792855716,0.0194,4059.9,4059.8,3.18546914]
[1758792855943,0.0194,4059.9,4059.8,2.46317552]
[1758792857539,0.001,4060.1,4060.0,2.46305418]
[1758792857860,0.001,4060.1,4060.0,2.89575418]
[1758792860053,0.001,4060.1,4060.0,3.68775418]
[1758792860965,0.001,4060.1,4060.0,2.46305418]
[1758792861561,0.001,4060.1,4059.9,2.46307168]
[1758792862067,0.001,4060.1,4059.9,2.46310952]
[1758792862378,0.001,4060.1,4059.7,2.46322036]
[1758792862743,0.001,4060.1,4059.8,2.46316714]
[1758792862945,0.001,4060.1,4060.0,0.1224]
[1758792863533,0.001,4060.1,4060.0,2.58545418]
[1758792863743,0.001,4060.1,4060.0,0.1224]
[1758792864168,0.001,4060.1,4060.0,2.58545418]
[1758792864372,0.001,4060.1,4060.0,0.1224]
[1758792865178,0.001,4060.1,4060.0,2.58545418]
[1758792865375,0.001,4060.1,4060.0,0.1224]
[1758792866976,0.7148,4060.1,4060.0,0.1224]
[1758792868477,1.51476147,4060.1,4060.0,0.1224]
[1758792868649,3.56776147,4060.1,4059.8,0.002]
[1758792868855,0.7138,4060.0,4059.8,0.1244]
[1758792869247,0.7138,4059.9,4059.8,0.1244]
[1758792869646,8.08872485,4059.9,4059.8,0.1244]
[1758792869872,8.08872485,4059.9,4059.8,0.002]
[1758792869873,18.36627365,4059.9,4059.8,0.002]
[1758792870073,7.99958665,4059.9,4059.8,0.002]
[1758792870347,10.02458665,4059.9,4059.8,0.002]
[1758792870647,0.80096147,4060.1,4059.8,0.002]
[1758792870850,5.0437,4059.9,4059.8,0.002]
[1758792871045,7.97391485,4059.9,4059.8,0.002]
[1758792871261,5.5108,4059.9,4059.8,0.002]
[1758792871461,3.17691485,4059.9,4059.8,0.002]
[1758792871665,10.02591485,4059.9,4059.8,0.002]
[1758792871881,14.28715017,4059.9,4059.8,0.002]
[1758792872077,21.08829517,4059.9,4059.8,0.002]
[1758792872281,19.34374917,4059.9,4059.8,0.002]
[1758792872587,16.02968917,4059.9,4059.8,0.002]
[1758792872790,2.46403836,4060.1,4059.8,0.002]
[1758792872791,0.001,4060.1,4059.8,0.002]
[1758792872965,4.788,4059.9,4059.8,0.002]
[1758792873171,5.5018,4059.9,4059.8,0.002]
[1758792874467,7.96491485,4059.9,4059.8,0.002]
[1758792874671,9.21310821,4059.9,4059.8,0.002]
[1758792875362,9.21230821,4059.9,4059.8,0.002]
[1758792879700,0.001,4060.1,4059.8,0.002]
[1758792881993,0.843,4060.0,4059.9,2.89581485]
[1758792882296,0.843,4060.0,4059.8,0.002]
[1758792882470,0.843,4060.0,4059.8,2.46516098]
[1758792882670,0.843,4060.0,4059.8,2.46516604]
[1758792882893,0.843,4060.0,4059.9,0.1224]
[1758792884607,0.001,4060.1,4059.9,0.1224]
[1758792884918,4.758,4060.1,4059.9,0.1224]
[1758792886470,4.758,4060.1,4059.9,2.58551317]
[1758792886805,4.749,4060.0,4059.9,0.1224]
[1758792891186,5.16176406,4060.0,4059.9,0.1224]
[1758792892332,5.39116406,4060.0,4059.9,0.1224]
[1758792892687,5.16176406,4060.0,4059.9,0.1224]
[1758792893806,7.62481824,4060.0,4059.9,0.1224]
[1758792894021,5.16176406,4060.0,4059.9,0.1224]
[1758792894327,12.10817285,4059.9,4059.8,0.002]
[1758792894523,14.63589196,4059.9,4059.8,0.002]
[1758792894689,15.56883996,4059.9,4059.8,0.002]
[1758792894893,17.74544496,4059.9,4059.8,0.002]
[1758792895087,15.54899196,4059.9,4059.8,0.002]
[1758792895389,20.73799196,4059.9,4059.8,0.002]
[1758792895590,22.44881796,4059.9,4059.8,0.002]
[1758792895791,20.73381796,4059.9,4059.8,0.002]
[1758792896024,38.60406796,4059.9,4059.8,0.002]
[1758792896824,41.99906796,4059.9,4059.8,0.002]
[1758792897121,3.25523619,4059.7,4059.6,1e-08]
[1758792897323,36.88380634,4059.7,4059.6,1e-08]
[1758792897544,37.56550634,4059.7,4059.6,1e-08]
[1758792897751,40.16850634,4059.7,4059.6,1e-08]
[1758792898455,2.46347892,4059.3,4059.2,1e-08]
[1758792898651,2.46372169,4058.9,4058.8,1e-08]
[1758792898813,12.20172169,4058.9,4058.8,1e-08]
[1758792899152,36.42870569,4058.9,4058.8,1e-08]
[1758792899822,37.22070569,4058.9,4058.8,1e-08]
[1758792900749,37.21990569,4058.9,4058.8,1e-08]
[1758792900948,38.42163539,4058.9,4058.8,1e-08]
[1758792901514,30.89163539,4058.9,4058.8,1e-08]
[1758792901713,19.55502939,4058.9,4058.8,1e-08]
[1758792902146,23.545284,4058.9,4058.8,1e-08]
[1758792902348,0.001,4060.1,4058.8,1e-08]
[1758792902550,0.2297,4059.8,4058.8,1e-08]
[1758792902853,2.46372169,4058.9,4058.8,1e-08]
[1758792903021,20.16123269,4058.9,4058.8,1e-08]
[1758792903219,19.44976725,4058.9,4058.8,1e-08]
[1758792903424,11.48320525,4058.9,4058.8,1e-08]
[1758792903645,14.48520525,4058.9,4058.8,1e-08]
[1758792904162,20.54923125,4058.9,4058.8,1e-08]
[1758792904318,20.53126425,4058.9,4058.8,1e-08]
[1758792904630,19.84796425,4058.9,4058.8,1e-08]
[1758792905074,19.50758225,4058.9,4058.8,1e-08]
[1758792905478,2.46346731,4059.4,4058.8,1e-08]
[1758792905479,0.2297,4061.1,4059.0,0.792]
[1758792905676,0.3864814,4059.3,4059.2,0.792]
[1758792905884,0.162,4059.4,4059.2,0.4624]
[1758792906180,1.997,4059.3,4058.8,1e-08]
[1758792906382,2.402,4059.3,4058.8,1e-08]
[1758792906885,2.46353961,4059.2,4058.8,1e-08]
[1758792907243,4.86549521,4059.3,4058.8,1e-08]
[1758792907439,4.768,4059.2,4058.8,0.58480001]
[1758792907644,4.768,4059.2,4058.8,0.12240001]
[1758792907645,9.28454977,4059.2,4058.8,0.12240001]
[1758792907843,10.55073213,4059.2,4058.8,0.12240001]
[1758792908054,2.46360997,4059.1,4058.8,0.12240001]
[1758792908473,4.759,4059.0,4058.8,0.12240001]
[1758792908640,0.2297,4059.8,4058.8,0.12240001]
[1758792908641,0.001,4060.1,4059.6,2.46324124]
[1758792908848,0.001,4060.1,4058.9,0.48703721]
[1758792908849,4.785,4060.0,4059.7,2.92557565]
[1758792909049,4.785,4060.0,4059.6,2.46327134]
[1758792909277,4.785,4060.0,4059.8,0.4624]
[1758792909782,0.001,4060.1,4059.9,0.4624]
[1758792909965,4.778,4060.0,4059.9,0.4624]
[1758792910754,4.775,4060.0,4059.9,0.4624]
[1758792910979,0.001,4060.1,4059.9,0.4624]
[1758792911238,0.001,4060.1,4060.0,0.4649]
[1758792911475,0.169,4060.1,4059.2,0.4649]
[1758792911660,0.169,4060.1,4059.6,2.46323707]
[1758792911861,0.169,4060.1,4059.7,2.4631943]
[1758792912179,0.169,4060.1,4059.8,2.46317552]
[1758792912384,0.169,4060.1,4059.9,2.46310741]
[1758792912607,0.001,4060.1,4059.3,1.79649]
[1758792912807,4.77,4060.0,4059.9,2.9280125]
[1758792913195,4.77,4060.0,4059.9,0.4649]
[1758792913893,4.77,4060.0,4059.8,2.46317179]
[1758792914091,4.77,4060.0,4059.3,0.4649]
[1758792914495,4.77,4060.0,4059.6,2.46325005]
[1758792914709,4.77,4060.0,4059.3,0.4649]
[1758792914710,4.77,4060.0,4059.5,2.46334706]
[1758792914909,4.77,4060.0,4059.7,2.46323109]
[1758792915109,4.758,4059.9,4059.8,2.92806326]
[1758792915410,4.752,4059.9,4059.8,0.4649]
[1758792915580,0.001,4060.1,4059.8,0.4649]
[1758792915787,4.748,4060.0,4059.8,0.4649]
[1758792916339,0.001,4060.1,4059.8,0.4649]
[1758792916611,4.748,4059.9,4059.7,2.46321765]
[1758792916809,4.748,4059.9,4059.6,2.46328834]
[1758792917172,0.001,4060.1,4059.6,2.46328834]
[1758792917398,4.743,4060.0,4059.6,2.46327578]
[1758792917603,5.4227,4060.0,4059.0,14.5]
[1758792917814,0.2363,4059.9,4059.0,14.5]
[1758792918111,2.46317894,4059.8,4059.0,14.5]
[1758792918497,2.46317894,4059.8,4059.0,16.9636597]
[1758792918704,1.05852498,4059.7,4059.4,0.1224]
[1758792919017,2.46335755,4059.5,4059.4,0.1224]
[1758792919168,5.4275,4059.6,4058.8,1e-08]
[1758792919169,2.46361797,4059.1,4058.8,1e-08]
[1758792919368,4.735,4059.0,4058.9,0.1224]
[1758792919999,7.198661,4059.0,4058.9,0.1224]
[1758792920234,8.37018178,4059.0,4058.9,0.1224]
[1758792920923,13.98871369,4058.9,4058.8,1e-08]
[1758792921150,12.11239369,4058.9,4058.8,1e-08]
[1758792921308,12.34869369,4058.9,4058.8,1e-08]
[1758792921635,17.73997984,4058.9,4058.8,1e-08]
[1758792922007,16.27915984,4058.9,4058.8,1e-08]
[1758792922809,16.6656987,4058.9,4058.8,1e-08]
[1758792924512,0.001,4060.1,4058.8,0.79200001]
[1758792924815,0.001,4060.1,4059.6,0.792]
[1758792925031,0.015,4060.0,4059.7,14.5]
[1758792925621,0.015,4060.0,4059.7,16.9632192]
[1758792925828,0.015,4060.0,4059.7,17.4281192]
[1758792926139,0.0142,4060.0,4059.7,17.4281192]
[1758792926348,0.0142,4060.0,4059.7,17.42812427]
[1758792927430,0.0142,4060.0,4059.7,14.9649]
[1758792927969,0.0142,4060.0,4059.7,14.5]
[1758792928464,0.0142,4060.0,4059.7,16.96323343]
[1758792928627,0.0142,4060.0,4059.7,14.5]
[1758792929352,0.0142,4060.0,4059.2,0.792]
[1758792929551,0.0142,4060.0,4059.5,2.46334233]
[1758792930363,0.0142,4060.0,4059.6,2.4632685]
[1758792930564,0.0142,4060.0,4059.7,2.46323309]
[1758792931070,0.0142,4060.0,4059.9,0.1224]
[1758792932446,4.744,4060.0,4059.9,0.1224]
[1758792934676,4.733,4060.0,4059.9,0.1224]
[1758792937977,4.715,4060.0,4059.6,0.4649]
[1758792939073,4.715,4060.0,4059.6,2.92819168]
[1758792939270,4.715,4060.0,4059.5,3.25534181]
[1758792939579,4.715,4060.0,4059.6,2.46329471]
[1758792939784,4.715,4060.0,4059.5,3.25534196]
[1758792940192,4.715,4060.0,4059.6,2.46328388]
[1758792940480,4.715,4060.0,4059.6,2.46328774]
[1758792940886,0.2375,4059.9,4059.4,2.4633663]
[1758792941181,0.2375,4059.8,4059.3,16.96546993]
[1758792941393,4.7,4059.7,4059.3,14.502]
[1758792941584,4.9375,4059.7,4059.3,0.002]
[1758792941783,2.46331105,4059.6,4059.3,0.002]
[1758792942085,2.46337139,4059.5,4059.3,0.002]
[1758792942283,4.696,4059.4,4059.3,0.002]
[1758792942488,7.41521897,4059.4,4059.3,0.002]
[1758792942694,8.12771897,4059.4,4059.3,0.002]
[1758792943803,9.91891823,4059.4,4059.3,0.002]
[1758792943970,30.29707823,4059.4,4059.3,0.002]
[1758792944164,30.81089123,4059.4,4059.3,0.002]
[1758792944989,29.46890423,4059.4,4059.3,0.002]
[1758792945401,28.39581823,4059.4,4059.3,0.002]
[1758792945605,30.38710438,4059.4,4059.3,0.002]
[1758792945971,35.85548838,4059.4,4059.3,0.002]
[1758792946172,34.01534938,4059.4,4059.3,0.002]
[1758792946578,0.38645666,4059.6,4059.3,0.4598]
[1758792946881,0.381,4060.2,4059.8,0.792]
[1758792947081,0.381,4060.2,4059.9,14.5]
[1758792947493,0.381,4060.2,4059.9,2.46311225]
[1758792947907,0.381,4060.2,4060.0,0.1224]
[1758792948106,0.381,4060.2,4060.0,2.58545418]
[1758792949406,0.381,4060.2,4060.0,0.1224]
[1758792949578,0.2385,4060.1,4059.6,2.46325473]
[1758792949773,0.476,4060.1,4059.7,0.1224]
[1758792950006,0.2375,4060.0,4059.7,0.1224]
[1758792950182,0.2375,4060.0,4059.7,2.46322779]
[1758792950611,0.55052213,4060.1,4059.7,2.46322779]
[1758792951500,0.78802213,4060.1,4059.6,2.46328645]
[1758792951705,0.78722213,4060.1,4059.7,2.46322755]
[1758792952511,0.78722213,4060.1,4059.4,2.46341823]
[1758792952711,0.78722213,4060.1,4059.6,2.46329273]
[1758792953206,0.78722213,4060.1,4059.5,2.46334794]
[1758792953711,0.78722213,4060.1,4059.3,0.4598]
[1758792953927,0.60061657,4060.0,4059.3,0.002]
[1758792954085,0.2375,4060.0,4059.5,2.46330425]
[1758792954286,0.54972213,4060.1,4059.7,2.46321791]
[1758792954620,0.2375,4059.9,4059.6,2.46328495]
[1758792956705,0.475,4059.9,4059.5,2.46335081]
[1758792956903,0.2375,4059.8,4059.5,2.46335081]
[1758792957519,0.001,4060.0,4059.6,2.46325556]
[1758792957931,0.001,4060.0,4059.5,2.46333745]
[1758792958095,0.2385,4060.0,4059.6,2.46329178]
[1758792958296,0.001,4060.0,4059.7,0.792]
[1758792958503,0.001,4060.0,4059.9,3.25511485]
[1758792958927,0.001,4060.0,4059.9,18.21291485]
[1758792959342,0.001,4060.0,4059.9,3.25511485]
[1758792959632,0.001,4060.0,4059.9,3.71291485]
[1758792960134,0.001,4060.0,4059.9,3.83531485]
[1758792960343,0.0002,4060.1,4059.9,3.83531485]
[1758792960344,0.0002,4060.1,4060.0,0.792]
[1758792960502,0.0002,4060.1,4060.0,6.71285418]
[1758792960830,0.0002,4060.1,4060.0,21.21285418]
[1758792963511,0.0002,4060.1,4060.0,20.42085418]
[1758792964112,0.0002,4060.1,4060.0,19.96305418]
[1758792964526,0.0002,4060.1,4060.0,15.292]
[1758792964848,0.0002,4060.1,4059.3,5.1138]
[1758792965006,0.0002,4060.1,4059.4,6.2457478]
[1758792965215,0.0002,4060.1,4059.5,14.5]
[1758792965418,0.2377,4060.1,4059.5,14.5]
[1758792965718,0.2377,4060.1,4059.3,0.002]
[1758792965920,0.2377,4060.1,4059.3,2.46546475]
[1758792966116,0.2377,4060.1,4059.4,2.46341811]
[1758792966338,2.70069455,4060.1,4059.3,2.46547337]
[1758792966521,0.80155129,4060.1,4059.3,0.002]
[1758792966723,0.2377,4060.1,4059.4,0.792]
[1758792966930,0.2381,4060.0,4059.3,0.002]
[1758792967324,0.2381,4060.0,4059.5,0.792]
[1758792967661,0.6709,4059.9,4059.5,0.792]
[1758792967824,0.6709,4059.9,4059.4,3.2553711]
[1758792968454,0.6709,4059.9,4059.4,0.792]
[1758792968847,0.6709,4059.8,4059.3,0.002]
[1758792969153,0.2381,4059.8,4059.3,0.002]
[1758792969318,0.2381,4059.8,4059.3,0.794]
[1758792969751,0.2381,4059.8,4059.3,3.25747756]
[1758792969956,0.2381,4059.8,4059.3,0.794]
[1758792970176,0.2381,4059.8,4059.3,3.25746312]
[1758792970379,0.2381,4059.8,4059.7,0.1224]
[1758792971655,0.433,4060.1,4059.7,0.1224]
[1758792971818,0.231,4060.0,4059.7,0.1224]
[1758792972026,0.231,4060.0,4059.5,0.792]
[1758792972229,0.231,4060.0,4059.9,0.1224]
[1758792972991,0.89971766,4060.0,4059.9,0.1224]
[1758792973764,0.89971766,4060.0,4059.9,0.1244]
[1758792974989,3.36277184,4060.0,4059.9,0.1244]
[1758792975347,3.80577184,4060.0,4059.9,0.1244]
[1758792975986,0.89971766,4060.0,4059.9,0.1244]
[1758792976285,1.34271766,4060.0,4059.9,0.1244]
[1758792976479,0.89971766,4060.0,4059.9,0.1244]
[1758792976970,0.89891766,4060.0,4059.9,0.1244]
[1758792978748,0.2302,4060.0,4059.9,0.1244]
[1758792979964,3.13625418,4060.0,4059.9,0.1244]
[1758792980159,3.13625418,4060.0,4059.4,0.002]
[1758792980160,9.190307,4059.9,4059.4,0.002]
[1758792980360,0.1224,4059.8,4059.4,0.002]
[1758792980658,2.46335755,4059.5,4059.4,0.002]
[1758792980847,4.51635755,4059.5,4059.4,0.002]
[1758792981053,10.83719955,4059.5,4059.4,0.002]
[1758792981389,11.17623755,4059.5,4059.4,0.002]
[1758792982075,12.04753355,4059.5,4059.4,0.002]
[1758792982254,11.22843466,4059.5,4059.4,0.002]
[1758792982870,11.23043466,4059.5,4059.4,0.002]
[1758792983451,13.49195166,4059.5,4059.4,0.002]
[1758792985668,0.38642636,4059.7,4059.4,3.25741823]
[1758792985865,0.0002,4060.1,4060.0,0.792]
[1758792986078,0.0002,4060.1,4060.0,3.25505418]
[1758792986556,0.0002,4060.1,4060.0,3.71185418]
[1758792987787,0.0002,4060.1,4060.0,3.83715418]
[1758792989206,0.0002,4060.1,4060.0,3.71185418]
[1758792989398,0.0002,4060.1,4060.0,3.25505418]
[1758792990302,0.0002,4060.1,4060.0,4.49180703]
[1758792990482,0.0002,4060.1,4060.0,7.46717649]
[1758792991120,0.0002,4060.1,4060.0,21.96717649]
[1758792991992,0.0002,4060.1,4060.0,22.08957649]
[1758792997342,0.0002,4060.1,4060.0,21.50747649]
[1758792997546,0.0002,4060.1,4060.0,26.06447649]
[1758792998437,0.0002,4060.1,4060.0,21.50747649]
[1758792998814,0.0002,4060.1,4060.0,6.37745418]
[1758792999408,0.0002,4060.1,4060.0,20.87745418]
[1758793001245,0.0002,4060.1,4060.0,21.00275418]
[1758793001443,0.0002,4060.1,4060.0,21.45535418]
[1758793002346,0.0002,4060.1,4060.0,20.87745418]
[1758793002549,0.23,4060.4,4060.3,2.4628722]
[1758793003050,0.23,4060.4,4060.3,2.5852722]
[1758793003212,0.23,4060.4,4060.3,17.0852722]
[1758793004414,0.6785,4060.4,4060.3,17.0852722]
[1758793004725,0.23,4060.4,4060.3,17.0852722]
[1758793006220,0.6785,4060.4,4060.3,2.5852722]
[1758793006721,0.23,4060.4,4060.0,2.46305418]
[1758793007064,0.6791,4060.3,4060.2,2.46293286]
[1758793007219,0.6791,4060.3,4060.1,2.46295379]
[1758793007548,0.6791,4060.2,4060.1,2.46299352]
[1758793009220,0.6791,4060.2,4059.9,2.46505691]
[1758793009549,0.6791,4060.1,4059.9,0.002]
[1758793009863,0.4485,4060.0,4059.9,2.46509479]
[1758793010161,0.4485,4060.0,4059.9,0.002]
[1758793010162,0.6791,4060.0,4059.9,0.002]
[1758793010604,0.2306,4060.0,4059.9,0.002]
[1758793010759,0.6791,4060.0,4059.9,0.002]
[1758793011092,0.95221,4060.0,4059.9,0.002]
[1758793011253,0.95221,4060.0,4059.9,2.46511485]
[1758793011656,0.95221,4060.0,4059.9,0.002]
[1758793012256,0.95221,4060.0,4059.9,2.46511485]
[1758793012672,0.95221,4060.0,4059.9,0.002]
[1758793013473,0.95221,4060.0,4059.9,2.46511485]
[1758793014094,0.95221,4060.0,4059.9,0.002]
[1758793014483,0.95221,4060.0,4059.9,2.46511485]
[1758793015698,0.95221,4060.0,4059.9,0.002]
[1758793015896,14.811549,4060.0,4059.9,0.002]
[1758793016093,15.177602,4060.0,4059.9,0.002]
[1758793016293,15.56397839,4060.0,4059.9,0.002]
[1758793016494,18.02703257,4060.0,4059.9,0.002]
[1758793016697,24.10820492,4060.0,4059.9,0.002]
[1758793016897,25.08540757,4060.0,4059.9,0.002]
[1758793017097,28.08540757,4060.0,4059.9,0.002]
[1758793019206,21.67014339,4060.0,4059.9,2.46511485]
[1758793019416,0.38637639,4060.0,4059.9,9.2471872]
[1758793020212,0.38637639,4060.0,4059.9,2.71341485]
[1758793020369,0.38637639,4060.0,4059.9,2.58751485]
[1758793020569,0.001,4060.4,4060.3,2.4628722]
[1758793021175,0.001,4060.4,4060.2,2.58531348]
[1758793021908,0.001,4060.4,4060.3,2.4628722]
[1758793022104,0.001,4060.4,4060.2,2.58532326]
[1758793022821,0.001,4060.4,4060.0,2.46304693]
[1758793022822,1.16046,4060.4,4060.0,2.46301173]
[1758793022973,1.16046,4060.4,4059.9,0.002]
[1758793022974,4.52,4060.3,4060.1,2.46295204]
[1758793023705,4.52,4060.3,4059.9,0.1244]
[1758793023895,4.52,4060.2,4060.0,2.46303274]
[1758793024495,4.52,4060.2,4059.9,0.1244]
[1758793024496,4.52,4060.2,4059.9,2.58750074]
[1758793024707,4.52,4060.2,4059.9,0.1244]
[1758793025018,0.2344,4060.1,4059.9,0.1244]
[1758793025309,0.2344,4060.1,4059.9,2.58746979]
[1758793025890,0.2344,4060.1,4059.9,0.1244]
[1758793026325,0.2344,4060.1,4059.9,2.58751315]
[1758793026525,4.90634751,4060.2,4059.9,2.58750224]
[1758793026703,5.14074751,4060.2,4059.9,2.58750224]
[1758793026910,2.315747,4060.1,4059.9,2.58750224]
[1758793027106,0.6841,4060.1,4059.9,0.1244]
[1758793027525,0.2344,4060.0,4059.9,0.1244]
[1758793027831,0.2344,4060.0,4059.9,2.58751485]
[1758793028030,0.2336,4060.0,4059.9,2.58751485]
[1758793028324,0.2336,4060.0,4059.9,0.1244]
[1758793028726,0.6833,4060.0,4059.9,0.1244]
[1758793028896,21.76888775,4060.0,4059.9,0.002]
[1758793029116,27.24696193,4060.0,4059.9,0.002]
[1758793029308,30.11849993,4060.0,4059.9,0.002]
[1758793029909,30.35289993,4060.0,4059.9,0.002]
[1758793030095,36.91141893,4060.0,4059.9,0.002]
[1758793034126,41.43041893,4060.0,4059.9,0.002]
[1758793034727,31.21396475,4060.0,4059.9,0.002]
[1758793034929,0.001,4060.4,4059.9,0.002]
[1758793034930,4.519,4060.2,4059.9,0.6919]
[1758793035246,4.519,4060.2,4059.9,0.1244]
[1758793037212,3.1224,4060.1,4059.9,0.002]
[1758793037413,16.26821318,4060.0,4059.9,0.002]
[1758793037734,12.646391,4060.0,4059.9,0.002]
[1758793037943,19.62844518,4060.0,4059.9,0.002]
[1758793038238,0.38635316,4060.2,4060.1,2.46299352]
[1758793038414,0.38635316,4060.2,4060.1,3.03049352]
[1758793038760,0.001,4060.4,4060.3,2.4628722]
[1758793039256,0.001,4060.4,4060.3,2.9036722]
[1758793040126,0.001,4060.4,4060.3,4.37170877]
[1758793040962,0.001,4060.4,4060.3,2.5895722]
[1758793041123,0.001,4060.4,4060.3,3.0303722]
[1758793042839,0.001,4060.4,4059.9,0.002]
[1758793043037,0.001,4060.4,4060.3,2.4628722]
[1758793043634,4.519,4060.4,4059.9,0.1287]
[1758793043959,4.519,4060.4,4059.9,0.002]
[1758793044326,4.7676,4060.4,4060.0,2.46303721]
[1758793044766,4.7676,4060.4,4059.9,2.46509788]
[1758793044941,3.17623,4060.3,4059.9,2.46509788]
[1758793045342,4.7676,4060.4,4060.0,2.46304761]
[1758793045661,5.230965,4060.3,4059.9,2.46509958]
[1758793045865,2.265593,4060.2,4059.9,2.46509958]
[1758793046166,2.693295,4060.3,4059.9,2.46509958]
[1758793046732,4.7676,4060.4,4060.0,2.46304298]
[1758793046932,2.357,4060.3,4060.0,2.46304298]
[1758793047149,2.357,4060.3,4059.9,2.46510319]
[1758793047353,0.001,4060.4,4059.9,0.1244]
[1758793047672,0.001,4060.4,4060.3,3.2548722]
[1758793048088,0.001,4060.4,4060.3,6.8223722]
[1758793050153,0.001,4060.4,4060.3,6.2548722]
[1758793050459,0.001,4060.4,4060.1,2.46297661]
[1758793050460,0.001,4060.4,4060.2,2.46293222]
[1758793050657,0.001,4060.4,4060.1,0.792]
[1758793050853,0.001,4060.4,4060.3,2.4628722]
[1758793051760,0.001,4060.4,4060.3,2.9036722]
[1758793051970,0.001,4060.4,4060.3,2.4628722]
[1758793052664,0.001,4060.4,4059.9,0.794]
[1758793052872,0.001,4060.4,4059.9,0.002]
[1758793053273,0.001,4060.4,4060.2,2.46291677]
[1758793053563,0.0002,4060.4,4060.3,2.4628722]
[1758793053765,0.0002,4060.4,4059.9,0.002]
[1758793053980,0.0002,4060.4,4060.3,2.4628722]
[1758793055973,0.0002,4060.4,4060.3,3.0303722]
[1758793056778,0.0002,4060.4,4060.3,9.9004396]
[1758793057481,0.0002,4060.4,4060.3,10.0228396]
[1758793058016,0.0002,4060.4,4060.3,3.9447722]
[1758793058199,0.0002,4060.4,4060.3,4.58554437]
[1758793058881,0.0002,4060.4,4060.3,9.09954437]
[1758793063726,0.4464,4060.4,4060.3,2.4628722]
[1758793064028,0.4464,4060.4,4059.9,0.42548]
[1758793064029,0.6918,4060.4,4059.9,2.46510249]
[1758793064215,0.6916,4060.3,4060.2,2.46292473]
[1758793065160,0.2454,4060.3,4060.2,2.46292473]
[1758793067170,0.2454,4060.3,4060.0,2.46505418]
[1758793067171,0.6916,4060.3,4060.1,2.46297518]
[1758793067338,0.4462,4060.3,4060.2,2.46293286]
[1758793067523,0.4462,4060.3,4060.0,0.002]
[1758793067729,0.0002,4060.4,4060.0,0.002]
[1758793067730,0.4462,4060.2,4060.1,2.46299352]
[1758793068034,0.6916,4060.2,4060.1,2.46299352]
[1758793068222,0.2454,4060.2,4060.1,2.46299352]
[1758793068755,0.0002,4060.4,4060.2,2.4629091]
[1758793068951,0.4464,4060.4,4060.3,2.4628722]
[1758793069323,0.4464,4060.4,4060.2,2.46291432]
[1758793069656,0.4464,4060.4,4060.3,2.4628722]
[1758793069657,0.6918,4060.4,4060.3,2.4628722]
[1758793070151,0.0002,4060.4,4060.3,2.4628722]
[1758793070325,0.4464,4060.4,4060.3,2.4628722]
[1758793070518,0.6918,4060.4,4060.3,2.4628722]
[1758793071552,0.6918,4060.4,4060.0,0.002]
[1758793071873,0.6918,4060.4,4060.2,2.46292113]
[1758793071874,0.6916,4060.3,4060.2,2.46292113]
[1758793072671,0.2454,4060.3,4060.2,2.46292113]
[1758793074058,0.2454,4060.3,4060.2,2.46293286]
[1758793074059,0.6916,4060.3,4060.2,2.46293286]
[1758793074356,0.6916,4060.3,4060.1,0.1224]
[1758793074357,0.6916,4060.3,4060.1,2.58538262]
[1758793074655,0.2454,4060.2,4060.1,2.58538262]
[1758793074859,0.2454,4060.2,4060.1,2.46298262]
[1758793075037,0.6916,4060.2,4060.0,0.002]
[1758793075237,0.6916,4060.1,4060.0,0.002]
[1758793076432,0.6916,4060.1,4060.0,2.46505418]
[1758793077324,0.6916,4060.1,4060.0,0.002]
[1758793077860,16.85415752,4060.1,4060.0,0.002]
[1758793078022,16.36152337,4060.1,4060.0,0.002]
[1758793078227,11.43645437,4060.1,4060.0,0.002]
[1758793078452,13.89944789,4060.1,4060.0,0.002]
[1758793078853,29.79665189,4060.1,4060.0,0.002]
[1758793079855,6.971203,4060.0,4059.2,2.46349397]
[1758793080047,2.4992,4059.9,4059.2,2.46350256]
[1758793080250,5.231138,4059.8,4059.2,2.46350256]
[1758793080553,2.053,4059.8,4059.3,2.46347017]
[1758793080722,5.16060042,4059.7,4059.3,2.46347017]
[1758793080927,0.2454,4059.6,4059.3,2.46347017]
[1758793081250,0.21746242,4059.7,4058.4,2.46599636]
[1758793081251,16.394309,4059.5,4058.4,2.46599636]
[1758793081569,5.470018,4059.4,4058.7,2.46382213]
[1758793081857,0.2454,4059.3,4058.6,2.46388617]
[1758793082067,0.2454,4059.2,4058.6,2.46388617]
[1758793082570,0.2472,4059.1,4058.4,0.002]
[1758793082771,2.37039566,4059.0,4058.4,0.002]
[1758793082929,2.46396451,4058.5,4058.4,0.002]
[1758793083238,35.46396451,4058.5,4058.4,0.002]